bitfinex/quotes_BTCUSD_20250623
["timestamp","ask_amount","ask_price","bid_price","bid_amount"]
[1750717226007,0.06963908,105390.0,105380.0,0.22774555]
[1750717226232,0.0572906,105390.0,105380.0,0.22774555]
[1750717226671,0.00913908,105390.0,105380.0,0.22774555]
[1750717227165,0.00913908,105390.0,105380.0,0.18978933]
[1750717227393,0.04113908,105390.0,105380.0,0.21825654]
[1750717227613,0.00913908,105390.0,105380.0,0.21825654]
[1750717228145,0.00913908,105390.0,105380.0,0.74937818]
[1750717228371,0.00413908,105390.0,105380.0,0.3147584]
[1750717228603,0.00013908,105390.0,105380.0,0.76391903]
[1750717228804,0.00413908,105390.0,105380.0,0.76391903]
[1750717229297,0.00213908,105390.0,105380.0,0.32929925]
[1750717229524,0.00013908,105390.0,105380.0,0.82851903]
[1750717229746,0.00013908,105390.0,105380.0,0.82951903]
[1750717230182,0.4058,105430.0,105420.0,0.21817382]
[1750717230408,0.40593901,105430.0,105420.0,0.21817382]
[1750717230672,0.40593901,105430.0,105420.0,0.20868859]
[1750717230919,0.06593901,105430.0,105420.0,0.21817382]
[1750717231389,0.06593901,105430.0,105420.0,0.20868859]
[1750717231626,0.06593901,105430.0,105400.0,0.20869883]
[1750717231627,0.0606,105410.0,105400.0,0.20869883]
[1750717231860,0.0606,105410.0,105400.0,0.22767316]
[1750717232106,0.0305,105410.0,105400.0,0.22767316]
[1750717232556,0.0625,105420.0,105410.0,0.21819451]
[1750717232988,0.0625,105420.0,105410.0,0.21719451]
[1750717233206,0.0625,105420.0,105410.0,0.22768073]
[1750717233423,0.0625,105420.0,105410.0,0.22674923]
[1750717233640,0.0625,105420.0,105410.0,0.23623536]
[1750717233854,0.0645,105420.0,105410.0,0.20777661]
[1750717234079,0.0645,105420.0,105410.0,0.00855418]
[1750717234536,0.59462164,105420.0,105410.0,0.00855418]
[1750717235202,0.59762164,105420.0,105410.0,0.19828949]
[1750717235909,0.0675,105420.0,105410.0,0.22674869]
[1750717236137,0.0675,105420.0,105410.0,0.19828949]
[1750717236329,0.0675,105420.0,105410.0,0.22674896]
[1750717236587,0.0675,105420.0,105410.0,0.21819496]
[1750717236801,0.0675,105420.0,105410.0,0.23716731]
[1750717237284,0.005,105420.0,105410.0,0.23716731]
[1750717237923,0.0698,105420.0,105410.0,0.23716731]
[1750717238137,0.005,105420.0,105410.0,0.23716731]
[1750717238601,0.038,105420.0,105410.0,0.23716731]
[1750717238840,0.0707,105420.0,105410.0,0.19922207]
[1750717239072,0.0707,105420.0,105410.0,0.21819496]
[1750717239292,0.50531978,105420.0,105410.0,0.00948676]
[1750717239513,0.50531978,105420.0,105400.0,0.20871875]
[1750717239703,0.50531978,105420.0,105400.0,0.22769353]
[1750717239952,0.50531978,105420.0,105400.0,0.23718047]
[1750717240171,0.50531978,105420.0,105410.0,0.20870856]
[1750717240398,0.50531978,105420.0,105400.0,0.18974442]
[1750717240399,0.0682,105420.0,105400.0,0.18974442]
[1750717240625,0.73668164,105410.0,105380.0,0.001]
[1750717240865,0.73668164,105410.0,105380.0,0.2002787]
[1750717240866,0.0652,105390.0,105380.0,0.2002787]
[1750717241091,0.0652,105390.0,105380.0,0.21925726]
[1750717241542,0.0652,105390.0,105380.0,0.21925735]
[1750717241768,0.0652,105390.0,105380.0,0.001]
[1750717242225,0.59532164,105390.0,105380.0,0.001]
[1750717242672,0.61998513,105390.0,105380.0,0.001]
[1750717242894,0.82942513,105390.0,105380.0,0.001]
[1750717243350,0.82938513,105390.0,105380.0,0.001]
[1750717245020,0.02766349,105390.0,105380.0,0.90808695]
[1750717245263,0.005,105390.0,105380.0,0.50193447]
[1750717245737,0.005,105390.0,105380.0,0.59743633]
[1750717245967,0.005,105390.0,105380.0,0.65843633]
[1750717246256,0.003,105390.0,105380.0,0.65843633]
[1750717246492,0.003,105390.0,105380.0,0.65943633]
[1750717246919,0.003,105390.0,105380.0,0.65843633]
[1750717247144,0.0631,105420.0,105410.0,0.21819451]
[1750717247357,0.0306,105420.0,105410.0,0.21819451]
[1750717247573,0.0633,105430.0,105410.0,0.22768073]
[1750717247786,0.18160814,105430.0,105420.0,0.00948577]
[1750717247995,0.18160814,105430.0,105410.0,0.21819406]
[1750717248206,0.0307,105420.0,105410.0,0.20870856]
[1750717248427,0.0317,105420.0,105410.0,0.21819487]
[1750717248648,0.001,105420.0,105410.0,0.21819487]
[1750717248866,0.0332,105420.0,105410.0,0.20870856]
[1750717249083,0.0332,105420.0,105410.0,0.21819505]
[1750717249297,0.0332,105420.0,105410.0,0.19922189]
[1750717249505,0.0332,105420.0,105410.0,0.21819514]
[1750717249715,0.0332,105420.0,105410.0,0.22768154]
[1750717249923,0.0352,105420.0,105410.0,0.23716731]
[1750717250140,0.002,105420.0,105410.0,0.23716686]
[1750717250350,0.002,105420.0,105410.0,0.22768073]
[1750717250565,0.004,105420.0,105410.0,0.2087082]
[1750717250776,0.004,105420.0,105410.0,0.21819451]
[1750717251007,0.004,105420.0,105410.0,0.22768064]
[1750717251285,0.004,105420.0,105410.0,0.22768073]
[1750717251498,0.004,105420.0,105410.0,0.21819451]
[1750717251710,0.02668862,105420.0,105410.0,0.21819451]
[1750717251927,0.02668862,105420.0,105410.0,0.22768064]
[1750717252160,0.004,105420.0,105410.0,0.21819451]
[1750717252378,0.02668852,105420.0,105410.0,0.22768073]
[1750717252603,0.02668852,105420.0,105410.0,0.23716686]
[1750717253912,0.54516065,105430.0,105410.0,0.20870856]
[1750717254155,0.54516065,105430.0,105410.0,0.00948676]
[1750717254156,0.57736065,105430.0,105410.0,0.00948676]
[1750717254376,4.963693,105410.0,105390.0,0.20874541]
[1750717254613,0.15980186,105410.0,105390.0,0.227721]
[1750717254876,0.15980186,105410.0,105390.0,0.21823325]
[1750717255115,0.15980186,105410.0,105390.0,0.22772118]
[1750717255338,0.09550186,105410.0,105400.0,0.21821585]
[1750717255564,0.49521978,105420.0,105400.0,0.21821594]
[1750717255783,0.59072164,105420.0,105400.0,0.21821594]
[1750717255992,0.001,105410.0,105400.0,0.21821603]
[1750717256176,0.001,105410.0,105400.0,0.22770342]
[1750717256433,0.59072164,105420.0,105400.0,0.21821549]
[1750717256643,0.59072164,105420.0,105410.0,0.18973531]
[1750717256857,0.93072164,105420.0,105400.0,0.20872783]
[1750717257091,0.93072164,105420.0,105400.0,0.19924089]
[1750717257312,0.93322164,105420.0,105400.0,0.2182154]
[1750717257542,0.93322164,105420.0,105400.0,0.20872837]
[1750717257779,0.93322164,105420.0,105410.0,0.19922207]
[1750717257986,0.93322164,105420.0,105410.0,0.20870874]
[1750717258409,0.93322164,105420.0,105410.0,0.19922207]
[1750717258679,0.93422164,105420.0,105410.0,0.20870865]
[1750717258901,0.93422164,105420.0,105410.0,0.21819514]
[1750717259140,0.93322164,105420.0,105400.0,0.19075332]
[1750717259384,0.49860186,105420.0,105400.0,0.21921585]
[1750717259625,0.93322164,105420.0,105400.0,0.01048766]
[1750717259841,0.43461978,105410.0,105400.0,0.001]
[1750717260051,0.59142164,105410.0,105400.0,0.001]
[1750717260734,0.3706,105400.0,105380.0,0.001]
[1750717260952,0.5613,105370.0,105350.0,0.0002]
[1750717261183,0.59232164,105360.0,105350.0,0.0002]
[1750717261399,0.09550186,105360.0,105350.0,0.19953553]
[1750717261635,0.09550186,105360.0,105350.0,0.0002]
[1750717261636,0.53012164,105360.0,105350.0,0.0002]
[1750717261893,0.15670186,105360.0,105350.0,0.0002]
[1750717262351,0.59132164,105360.0,105350.0,0.000664]
[1750717262800,0.59132164,105360.0,105350.0,0.001664]
[1750717263453,0.09550186,105360.0,105350.0,0.19150737]
[1750717263668,0.4784,105380.0,105350.0,0.28988854]
[1750717263880,0.59572164,105370.0,105350.0,0.004664]
[1750717264091,0.59572164,105370.0,105350.0,0.22298168]
[1750717264298,0.53012164,105370.0,105350.0,0.21348997]
[1750717264511,0.53012164,105370.0,105350.0,0.21249024]
[1750717264729,0.53012164,105370.0,105350.0,0.003664]
[1750717264961,0.53012164,105370.0,105350.0,0.000664]
[1750717265173,0.09550186,105370.0,105350.0,0.20949115]
[1750717265398,0.53012164,105370.0,105350.0,0.000664]
[1750717265613,0.49671978,105360.0,105350.0,0.000664]
[1750717265821,0.49760186,105360.0,105350.0,0.000664]
[1750717266028,1.21006164,105360.0,105350.0,0.000664]
[1750717266283,1.22250414,105360.0,105350.0,0.000664]
[1750717266495,1.21006164,105360.0,105350.0,0.000664]
[1750717266927,0.004,105360.0,105350.0,0.21898277]
[1750717267161,0.004,105360.0,105350.0,0.29538061]
[1750717267596,0.53558188,105380.0,105360.0,0.21829165]
[1750717267745,0.63108374,105380.0,105360.0,0.20580102]
[1750717267958,0.63108374,105380.0,105360.0,0.2088012]
[1750717268161,0.53012164,105370.0,105350.0,0.20949106]
[1750717268387,0.53012164,105370.0,105360.0,0.00949126]
[1750717268587,0.0728,105380.0,105370.0,0.1992977]
[1750717268790,0.0728,105380.0,105360.0,0.20880743]
[1750717268988,0.60292164,105380.0,105360.0,0.21829815]
[1750717269194,0.43461978,105370.0,105360.0,0.00949126]
[1750717269550,0.43461978,105370.0,105360.0,0.21829851]
[1750717269800,0.43461978,105370.0,105360.0,0.2088077]
[1750717270014,0.59772164,105380.0,105350.0,0.19999917]
[1750717270234,0.43461978,105360.0,105350.0,0.19050737]
[1750717270442,0.64628584,105360.0,105350.0,0.2189834]
[1750717270652,0.09550186,105360.0,105350.0,0.22847511]
[1750717270791,0.09550186,105360.0,105350.0,0.21898349]
[1750717270992,0.09550186,105360.0,105350.0,0.01964823]
[1750717271397,0.09550186,105360.0,105350.0,0.01015616]
[1750717271601,0.09550186,105360.0,105350.0,0.000664]
[1750717272044,0.64628584,105360.0,105350.0,0.000664]
[1750717272406,0.09550186,105360.0,105350.0,0.20949142]
[1750717272610,0.09550186,105360.0,105350.0,0.19999953]
[1750717272871,0.09550186,105360.0,105350.0,0.20949151]
[1750717273075,0.09550186,105360.0,105350.0,0.000664]
[1750717273525,0.09550186,105360.0,105350.0,0.01015616]
[1750717273789,0.09550186,105360.0,105350.0,0.000664]
[1750717274047,0.29779267,105380.0,105360.0,0.19931662]
[1750717274280,0.0332,105400.0,105370.0,0.19929734]
[1750717274503,0.72466179,105400.0,105370.0,0.2087877]
[1750717274719,0.64628584,105390.0,105370.0,0.00949027]
[1750717274907,0.64628584,105390.0,105370.0,0.19929589]
[1750717275177,0.64628584,105390.0,105370.0,0.20878589]
[1750717275429,0.64428584,105390.0,105370.0,0.20878589]
[1750717275648,0.6731639,105390.0,105370.0,0.20878589]
[1750717275875,0.02887806,105390.0,105380.0,0.19927861]
[1750717276104,0.02887806,105390.0,105380.0,0.2162569]
[1750717276320,0.0008,105400.0,105380.0,0.2067678]
[1750717276533,0.64708584,105400.0,105380.0,0.21625681]
[1750717276740,0.70858584,105400.0,105370.0,0.20978517]
[1750717276941,0.64628584,105390.0,105370.0,0.22876663]
[1750717277143,0.64628584,105390.0,105370.0,0.21927681]
[1750717277144,0.64828584,105390.0,105370.0,0.21927681]
[1750717277345,0.64628584,105390.0,105370.0,0.23725636]
[1750717277468,0.64628584,105390.0,105370.0,0.21827681]
[1750717277665,0.67918584,105390.0,105370.0,0.21827681]
[1750717277878,0.61708398,105400.0,105380.0,0.21825699]
[1750717278082,0.16180186,105400.0,105390.0,0.19925979]
[1750717278296,0.09630186,105400.0,105390.0,0.00948856]
[1750717278505,0.0008,105400.0,105390.0,0.22772448]
[1750717278923,0.0038,105400.0,105390.0,0.22772448]
[1750717279128,0.0008,105400.0,105390.0,0.22772448]
[1750717280080,0.0008,105400.0,105390.0,0.29012448]
[1750717280242,0.0008,105400.0,105390.0,0.37052232]
[1750717281290,0.0008,105400.0,105390.0,1.03434901]
[1750717281559,0.0008,105400.0,105390.0,0.48356503]
[1750717281998,0.0008,105400.0,105390.0,1.36734901]
[1750717282167,0.0008,105400.0,105390.0,1.42734901]
[1750717282363,0.0008,105400.0,105390.0,1.37134901]
[1750717282786,0.0008,105400.0,105390.0,1.37534901]
[1750717282989,0.0008,105400.0,105390.0,1.38334901]
[1750717283397,0.0008,105400.0,105390.0,1.39334901]
[1750717284197,0.0001,105410.0,105400.0,0.21821522]
[1750717284406,0.0001,105410.0,105400.0,0.31371708]
[1750717284570,0.0009,105410.0,105400.0,0.21821522]
[1750717284773,0.0009,105410.0,105400.0,0.42221522]
[1750717284979,0.0009,105410.0,105400.0,0.21821522]
[1750717285175,0.0009,105410.0,105400.0,0.42217522]
[1750717285382,0.0009,105410.0,105400.0,0.43617522]
[1750717285593,0.0009,105410.0,105400.0,1.14536106]
[1750717285826,0.0009,105410.0,105400.0,0.59457708]
[1750717287739,0.0009,105410.0,105400.0,0.53155708]
[1750717287931,0.0009,105410.0,105400.0,0.32771708]
[1750717288225,0.0009,105410.0,105400.0,0.43601522]
[1750717288470,0.0009,105410.0,105400.0,0.23221522]
[1750717288705,0.0009,105410.0,105400.0,0.43601522]
[1750717289451,0.0009,105410.0,105400.0,0.23221522]
[1750717289675,0.0009,105410.0,105400.0,0.014]
[1750717289676,0.71098584,105410.0,105400.0,0.014]
[1750717289911,0.71098584,105410.0,105400.0,0.00450639]
[1750717291006,0.71098584,105410.0,105400.0,0.00550639]
[1750717291472,0.78254584,105410.0,105400.0,0.00450639]
[1750717291690,0.78254584,105410.0,105380.0,0.28516465]
[1750717291895,0.12690186,105400.0,105390.0,0.00948856]
[1750717292125,0.12690186,105400.0,105390.0,0.01897694]
[1750717292342,0.12690186,105400.0,105390.0,0.21823646]
[1750717292564,0.09550186,105400.0,105390.0,0.01897703]
[1750717292784,0.13386,105410.0,105390.0,0.22772421]
[1750717293016,0.22936186,105410.0,105390.0,0.20874781]
[1750717293241,0.0009,105410.0,105400.0,0.2277027]
[1750717293454,0.0009,105410.0,105400.0,0.30410054]
[1750717293886,0.0049,105410.0,105400.0,0.2277027]
[1750717294348,0.0009,105410.0,105400.0,0.2277027]
[1750717294552,0.0009,105410.0,105400.0,0.21821567]
[1750717294754,0.0049,105410.0,105400.0,0.22770279]
[1750717294963,0.0049,105410.0,105400.0,0.21821585]
[1750717295187,0.0069,105410.0,105400.0,0.22770306]
[1750717295401,0.0069,105410.0,105400.0,0.22770315]
[1750717295632,0.0089,105410.0,105400.0,0.22770315]
[1750717296276,0.0089,105410.0,105400.0,0.21821585]
[1750717296952,0.0089,105410.0,105400.0,0.22770315]
[1750717297181,0.0089,105410.0,105400.0,0.23719036]
[1750717297402,0.0089,105410.0,105400.0,0.22770315]
[1750717297615,0.0089,105410.0,105400.0,0.23719036]
[1750717297830,0.0089,105410.0,105400.0,0.21821585]
[1750717298106,0.0078,105410.0,105400.0,0.23719009]
[1750717299276,0.0078,105410.0,105400.0,0.22770306]
[1750717299501,0.0038,105410.0,105400.0,0.23718955]
[1750717299726,0.002,105410.0,105400.0,0.22770252]
[1750717299948,0.004,105410.0,105400.0,0.1992408]
[1750717300164,0.43648004,105410.0,105390.0,0.41190709]
[1750717300411,0.43448004,105410.0,105390.0,0.41190709]
[1750717300633,0.43448004,105410.0,105400.0,0.00948766]
[1750717300884,0.002,105410.0,105400.0,0.00948748]
[1750717301104,0.002,105410.0,105400.0,0.01897487]
[1750717301321,0.002,105410.0,105400.0,0.1992408]
[1750717301535,0.49458004,105420.0,105400.0,0.1992408]
[1750717301765,0.5900819,105420.0,105400.0,0.1992408]
[1750717301992,0.5900819,105420.0,105400.0,0.20872819]
[1750717302203,0.5900819,105420.0,105400.0,0.01897514]
[1750717302436,0.43248004,105410.0,105390.0,0.19925961]
[1750717302656,0.15790186,105420.0,105390.0,0.2277243]
[1750717302872,0.43248004,105410.0,105390.0,0.23721133]
[1750717303307,0.43248004,105410.0,105400.0,0.00948757]
[1750717303527,0.15990186,105420.0,105400.0,0.00948757]
[1750717303745,0.43248004,105410.0,105390.0,0.21823484]
[1750717303990,0.43648004,105420.0,105410.0,0.19922207]
[1750717304208,0.004,105420.0,105410.0,0.20870865]
[1750717304420,1.04732004,105430.0,105410.0,0.21819496]
[1750717304678,0.74268087,105430.0,105410.0,0.227681]
[1750717304907,0.004,105420.0,105410.0,0.227681]
[1750717305150,0.002,105420.0,105410.0,0.227681]
[1750717305369,0.004,105420.0,105400.0,0.27563819]
[1750717305587,0.002,105420.0,105400.0,0.22770144]
[1750717305823,0.002,105420.0,105410.0,0.20870874]
[1750717306051,0.002,105420.0,105410.0,0.21819532]
[1750717306279,0.5299819,105420.0,105400.0,0.20872819]
[1750717306502,0.16430186,105420.0,105400.0,0.22770234]
[1750717306728,0.002,105420.0,105410.0,0.227681]
[1750717306944,0.004,105420.0,105410.0,0.227681]
[1750717307205,0.004,105420.0,105400.0,0.41144747]
[1750717307434,0.43648004,105420.0,105410.0,0.00948676]
[1750717307648,0.43248004,105420.0,105410.0,0.01888743]
[1750717308075,0.43648004,105420.0,105400.0,0.21821495]
[1750717308302,0.43648004,105420.0,105400.0,0.1992408]
[1750717308525,0.5605819,105420.0,105400.0,0.1992408]
[1750717308737,0.5920819,105420.0,105400.0,0.2087281]
[1750717308952,0.5920819,105420.0,105400.0,0.21821531]
[1750717309171,0.5920819,105420.0,105400.0,0.2087281]
[1750717309395,0.5900819,105420.0,105400.0,0.1992408]
[1750717309629,0.5920819,105420.0,105400.0,0.1992408]
[1750717309863,0.5940819,105420.0,105400.0,0.2087281]
[1750717310308,0.5920819,105420.0,105400.0,0.21821531]
[1750717310548,0.5920819,105420.0,105400.0,0.00948766]
[1750717310787,0.5597819,105410.0,105390.0,0.19925802]
[1750717311022,0.43248004,105400.0,105390.0,0.21823451]
[1750717311292,0.99226194,105400.0,105370.0,0.19929618]
[1750717311527,0.7945219,105400.0,105390.0,0.19925979]
[1750717311760,0.29794186,105400.0,105380.0,0.20876699]
[1750717311977,0.29794186,105400.0,105380.0,0.21825627]
[1750717312201,0.29794186,105400.0,105380.0,0.21825645]
[1750717312449,0.7628219,105400.0,105380.0,0.21825645]
[1750717312672,0.7304219,105400.0,105390.0,0.01148856]
[1750717312894,0.7304219,105400.0,105390.0,0.02097703]
[1750717313116,0.20236,105400.0,105390.0,0.22972493]
[1750717313337,0.20236,105400.0,105390.0,0.23921295]
[1750717313590,0.20236,105400.0,105390.0,0.22023637]
[1750717313812,0.20236,105400.0,105390.0,0.21823637]
[1750717314042,0.20236,105400.0,105390.0,0.20974817]
[1750717314263,0.20228,105400.0,105390.0,0.20974817]
[1750717314702,0.20228,105400.0,105390.0,0.21174817]
[1750717315338,0.0324,105410.0,105390.0,0.24021259]
[1750717315550,0.70512004,105410.0,105400.0,0.18975332]
[1750717315778,0.70512004,105410.0,105400.0,0.19924089]
[1750717315992,0.70512004,105410.0,105400.0,0.01897523]
[1750717316195,0.63468004,105410.0,105390.0,0.2202361]
[1750717316351,0.63468004,105410.0,105390.0,0.22972412]
[1750717316555,0.63468004,105410.0,105390.0,0.2202361]
[1750717316772,0.66468004,105410.0,105390.0,0.19925979]
[1750717317142,0.71264232,105410.0,105390.0,0.20874817]
[1750717317392,0.80814418,105410.0,105390.0,0.20874808]
[1750717317613,0.01776228,105410.0,105400.0,0.18975332]
[1750717317797,0.63460004,105420.0,105400.0,0.19924089]
[1750717318011,0.33812241,105420.0,105400.0,0.21821576]
[1750717318149,0.77060245,105420.0,105400.0,0.23719018]
[1750717318349,0.31538284,105420.0,105400.0,0.23718946]
[1750717318604,0.7301019,105420.0,105410.0,0.00948676]
[1750717318805,0.74786787,105420.0,105400.0,0.22770198]
[1750717319000,0.74986787,105420.0,105400.0,0.22770207]
[1750717319204,0.7498679,105420.0,105410.0,0.00948667]
[1750717319434,0.7498679,105420.0,105410.0,0.20870856]
[1750717319435,0.20412,105420.0,105410.0,0.20870856]
[1750717319639,0.20396,105420.0,105410.0,0.22768109]
[1750717319847,0.20396,105420.0,105410.0,0.21819496]
[1750717320115,0.20396,105420.0,105410.0,0.19922198]
[1750717320314,0.20396,105420.0,105410.0,0.20870856]
[1750717320523,0.20596,105420.0,105410.0,0.19922198]
[1750717320740,0.20596,105420.0,105410.0,0.22768109]
[1750717320741,0.002,105420.0,105410.0,0.22768109]
[1750717320957,0.002,105420.0,105410.0,0.21819496]
[1750717321185,0.002,105420.0,105410.0,0.22768109]
[1750717321386,0.004,105420.0,105410.0,0.22768109]
[1750717322028,0.004,105420.0,105410.0,0.30407893]
[1750717322243,0.004,105420.0,105410.0,0.38688295]
[1750717323098,0.002,105420.0,105410.0,0.38688295]
[1750717323307,0.00013901,105430.0,105420.0,0.21817382]
[1750717324171,0.00013901,105430.0,105420.0,0.37737568]
[1750717324433,0.00013901,105430.0,105420.0,0.80985572]
[1750717324647,0.00013901,105430.0,105420.0,0.37737568]
[1750717324858,0.00013901,105430.0,105420.0,0.57905568]
[1750717325298,0.00013901,105430.0,105420.0,0.41985382]
[1750717325496,0.00013901,105430.0,105420.0,0.21817382]
[1750717325697,0.00113901,105430.0,105420.0,0.21817382]
[1750717326026,0.43261905,105430.0,105410.0,0.20870802]
[1750717326273,0.03073901,105430.0,105420.0,0.002]
[1750717326473,0.46321905,105430.0,105420.0,0.005]
[1750717326923,0.03073901,105430.0,105420.0,0.002]
[1750717327072,0.46321905,105430.0,105420.0,0.002]
[1750717327274,0.46321905,105430.0,105410.0,0.22119496]
[1750717327566,0.00013901,105430.0,105420.0,0.00948586]
[1750717327762,0.52812091,105430.0,105410.0,0.19922198]
[1750717327964,0.15874087,105430.0,105420.0,0.002]
[1750717328164,0.15874087,105430.0,105400.0,0.20872488]
[1750717328165,0.0631,105420.0,105400.0,0.20872488]
[1750717328413,0.5279819,105420.0,105410.0,0.18973531]
[1750717328623,0.49831905,105430.0,105410.0,0.19922198]
[1750717328830,0.86558091,105430.0,105410.0,0.21070847]
[1750717329034,0.86558091,105430.0,105410.0,0.21070856]
[1750717329241,0.86558091,105430.0,105410.0,0.20870856]
[1750717329464,0.86554091,105430.0,105410.0,0.21819505]
[1750717329674,0.001,105420.0,105410.0,0.23068145]
[1750717329887,0.001,105420.0,105410.0,0.003]
[1750717330102,0.86554091,105430.0,105410.0,0.01897343]
[1750717330311,0.86854091,105430.0,105400.0,0.21821173]
[1750717330514,0.86746091,105430.0,105400.0,0.21821173]
[1750717330725,0.86746091,105430.0,105400.0,0.22769858]
[1750717330957,0.001,105420.0,105410.0,0.00948667]
[1750717331176,0.86746091,105430.0,105400.0,0.22769858]
[1750717331437,0.87046091,105430.0,105410.0,0.20870855]
[1750717331652,0.87046091,105430.0,105410.0,0.21819531]
[1750717331862,0.87046091,105430.0,105410.0,0.00948676]
[1750717332078,0.43798087,105430.0,105410.0,0.00948676]
[1750717332283,0.86846091,105430.0,105410.0,0.00948676]
[1750717332498,0.86846091,105430.0,105410.0,0.19922012]
[1750717332734,0.86546091,105430.0,105410.0,0.20870661]
[1750717332946,0.001,105420.0,105410.0,0.20870661]
[1750717333156,0.001,105420.0,105410.0,0.21819292]
[1750717333363,0.001,105420.0,105410.0,0.22767905]
[1750717333576,0.73224091,105430.0,105410.0,0.22767905]
[1750717333781,0.72924091,105430.0,105410.0,0.20870616]
[1750717334018,0.73124091,105430.0,105420.0,0.00948586]
[1750717334239,0.001,105420.0,105400.0,0.19923713]
[1750717334453,0.36206087,105430.0,105410.0,0.19922163]
[1750717334666,0.36206087,105430.0,105420.0,0.199203]
[1750717334667,0.29876087,105430.0,105420.0,0.199203]
[1750717334891,0.29876087,105430.0,105420.0,0.00948586]
[1750717335357,0.29676087,105430.0,105420.0,0.20868877]
[1750717335785,0.29976087,105430.0,105410.0,0.20870758]
[1750717336001,0.73224091,105430.0,105410.0,0.21819371]
[1750717336210,0.73124091,105430.0,105410.0,0.19922163]
[1750717336424,0.76494091,105430.0,105410.0,0.21819434]
[1750717336661,0.79494091,105430.0,105400.0,0.20872407]
[1750717336867,0.79294091,105430.0,105410.0,0.20870867]
[1750717337077,0.79294091,105430.0,105420.0,0.20868877]
[1750717337078,0.36246087,105430.0,105420.0,0.20868877]
[1750717337292,0.30476087,105430.0,105420.0,0.20868895]
[1750717337507,0.73724091,105430.0,105420.0,0.21817463]
[1750717337721,0.73724091,105430.0,105420.0,0.22766022]
[1750717337962,0.73724091,105430.0,105420.0,0.237145]
[1750717337963,0.00813901,105430.0,105420.0,0.237145]
[1750717338172,0.00213901,105430.0,105420.0,0.237145]
[1750717338370,0.00013901,105430.0,105420.0,0.237145]
[1750717338784,0.00213901,105430.0,105420.0,0.237145]
[1750717338996,0.00213901,105430.0,105420.0,0.22765986]
[1750717339240,0.00013901,105430.0,105410.0,0.28510537]
[1750717339447,0.00013901,105430.0,105410.0,0.2851053]
[1750717339448,0.43561905,105430.0,105410.0,0.2851053]
[1750717339655,0.43461905,105430.0,105410.0,0.2945917]
[1750717339871,0.00513901,105430.0,105410.0,0.31356414]
[1750717340077,0.00213901,105430.0,105410.0,0.31356279]
[1750717340287,0.00013901,105430.0,105410.0,0.2945908]
[1750717340507,0.00313901,105430.0,105410.0,0.28510512]
[1750717340717,0.00313901,105430.0,105410.0,0.2276799]
[1750717340924,0.00313901,105430.0,105410.0,0.2371654]
[1750717341143,0.00313901,105430.0,105410.0,0.21819332]
[1750717341373,0.59272091,105430.0,105410.0,0.00948676]
[1750717341600,0.59472091,105430.0,105410.0,0.20870754]
[1750717341890,0.59472091,105430.0,105410.0,0.21819403]
[1750717342085,0.59472091,105430.0,105420.0,0.19920309]
[1750717342287,0.59472091,105430.0,105410.0,0.21819295]
[1750717342288,0.00513901,105430.0,105410.0,0.21819295]
[1750717342527,0.00513901,105430.0,105410.0,0.20870691]
[1750717342753,0.00513901,105430.0,105420.0,0.29457166]
[1750717342965,0.00313901,105430.0,105420.0,0.45317352]
[1750717343193,0.0001,105440.0,105430.0,0.27611405]
[1750717343409,0.0001,105440.0,105430.0,0.37675498]
[1750717343624,0.0001,105440.0,105430.0,0.57719498]
[1750717343848,0.0001,105440.0,105430.0,0.37675498]
[1750717344087,0.0001,105440.0,105430.0,0.21515312]
[1750717344767,0.0001,105440.0,105430.0,0.21815312]
[1750717345018,0.0001,105440.0,105430.0,0.21615312]
[1750717345489,0.12610186,105440.0,105430.0,0.003]
[1750717345685,0.5914819,105440.0,105430.0,0.005]
[1750717345978,0.15900186,105440.0,105430.0,0.22315366]
[1750717346202,0.15900186,105440.0,105430.0,0.22315375]
[1750717346435,0.15900186,105440.0,105430.0,0.21366906]
[1750717346663,0.0001,105440.0,105430.0,0.24212268]
[1750717346924,0.0001,105440.0,105430.0,0.51872052]
[1750717347149,0.0001,105440.0,105430.0,1.45080242]
[1750717347386,0.0001,105440.0,105430.0,1.88428246]
[1750717347621,0.0001,105440.0,105430.0,1.31994327]
[1750717348078,0.0001,105440.0,105430.0,1.52010327]
[1750717348312,0.0001,105440.0,105430.0,1.08762323]
[1750717348537,0.0001,105440.0,105430.0,1.51810327]
[1750717348779,0.0001,105440.0,105430.0,1.08562323]
[1750717348999,0.0001,105440.0,105430.0,1.52310327]
[1750717349225,0.0001,105450.0,105440.0,0.21813243]
[1750717349492,0.0001,105450.0,105440.0,0.80841433]
[1750717349735,0.0001,105450.0,105440.0,1.36299518]
[1750717349964,0.0001,105450.0,105440.0,1.84547522]
[1750717351251,0.0001,105450.0,105440.0,1.84947522]
[1750717351674,0.0001,105450.0,105440.0,0.98451514]
[1750717351888,0.0001,105450.0,105440.0,1.89547522]
[1750717352096,0.0001,105450.0,105440.0,1.90347522]
[1750717352949,0.0001,105450.0,105440.0,1.91347522]
[1750717353403,0.0001,105450.0,105440.0,1.21641433]
[1750717353631,0.0001,105450.0,105440.0,1.98231522]
[1750717354560,0.0001,105450.0,105440.0,1.93231522]
[1750717354783,0.0001,105450.0,105440.0,1.98231522]
[1750717355252,0.0001,105460.0,105450.0,1.16793263]
[1750717355473,0.0001,105460.0,105450.0,1.26343449]
[1750717355704,0.0001,105460.0,105450.0,1.51008867]
[1750717355930,0.0001,105480.0,105470.0,0.28261123]
[1750717356148,0.0158187,105490.0,105480.0,1.26205066]
[1750717356363,0.0158187,105490.0,105480.0,1.62611252]
[1750717356573,0.069,105540.0,105500.0,0.21800838]
[1750717356785,0.000199,105510.0,105500.0,1.00835028]
[1750717356996,0.000199,105510.0,105500.0,1.03306769]
[1750717357219,0.000199,105510.0,105500.0,1.04760854]
[1750717358751,0.000199,105510.0,105500.0,0.6171285]
[1750717358972,0.000199,105510.0,105500.0,1.04960854]
[1750717359207,0.029999,105550.0,105540.0,0.00947499]
[1750717359426,0.029999,105550.0,105540.0,0.21830989]
[1750717359427,0.03013787,105550.0,105540.0,0.21830989]
[1750717359673,0.03013787,105550.0,105540.0,0.19936]
[1750717359900,0.03013787,105550.0,105540.0,0.00947508]
[1750717360121,0.03013787,105550.0,105540.0,0.19932]
[1750717360337,0.03891534,105550.0,105540.0,0.19932]
[1750717360563,0.03891534,105550.0,105530.0,0.21793512]
[1750717360816,0.53689767,105550.0,105530.0,0.19924]
[1750717361047,0.53689767,105550.0,105520.0,0.21794389]
[1750717361048,0.10441763,105550.0,105520.0,0.21794389]
[1750717361272,0.53689767,105550.0,105530.0,0.40771053]
[1750717361498,0.09564073,105550.0,105530.0,0.40771071]
[1750717361731,0.09564073,105550.0,105530.0,0.19924]